Cogmind - Beta 9.3 @@@ ROGUE MODE // 2019.12.29 @ 21:33:14 Player: Cipherpunk Result: Destroyed by D-53 Grenadier with Mini Grenade Launcher Performance ------------- Evolutions (0) 0 Regions Visited (4) 800 Robots Destroyed (46) 230 Value Destroyed (695) 695 Prototype IDs (2) 40 Alien Tech Used (0) 0 Bonus (300) 300 TOTAL SCORE: 2065 Bonus ------- Aligned with FarCom 300 Cogmind --------- Core Integrity 0/250 Matter 210/300 Energy 100/100 System Corruption 1% Temperature Cool (0) Movement Core (300) Ox5 Location -9/Mines Parts ------- > --- POWER (1) -------- (None) > --- PROPULSION (2) --- (None) > --- UTILITY (2) ------ Medium Storage Unit Medium Storage Unit > --- WEAPON (2) ------- (None) > --- INVENTORY (12) --- Aluminum Leg Aluminum Leg Structural Scanner Cloak of Protection Medium Armor Plating Light EM Pulse Cannon Light EM Pulse Cannon Light EM Pulse Cannon Assault Rifle Light Assault Rifle Light Assault Rifle Grenade Launcher Peak State ------------ > --- POWER ------------ Ion Engine > --- PROPULSION ------- Aluminum Leg Aluminum Leg > --- UTILITY ---------- Medium Storage Unit Medium Storage Unit > --- WEAPON ----------- Light EM Pulse Cannon Light EM Pulse Cannon > --- INVENTORY -------- Aluminum Leg Aluminum Leg Structural Scanner Cloak of Protection Medium Armor Plating Light EM Pulse Cannon Light EM Pulse Cannon Light EM Pulse Cannon Assault Rifle Light Assault Rifle Light Assault Rifle Grenade Launcher [Rating: 11] Favorites ----------- Power Ion Engine Engine Ion Engine Propulsion Aluminum Leg Leg Aluminum Leg Utility Medium Storage Unit Storage Medium Storage Unit Weapon Light EM Pulse Cannon Energy Cannon Light EM Pulse Cannon Ballistic Gun Light Assault Rifle Launcher Grenade Launcher Build | -11 -10 -10 -10 -9 ------- Run | Scr Mat Min Exi Min Slots Evolved . | . . . . . Power . | . . . . . Propulsion . | . . . . . Utility . | . . . . . Weapon . | . . . . . Parts Attached 14 | . 11 . . 3 Power 1 | . 1 . . . Engine 1 | . 1 . . . Core . | . . . . . Reactor . | . . . . . Propulsion 3 | . 2 . . 1 Treads . | . . . . . Leg 3 | . 2 . . 1 Wheel . | . . . . . Hover . | . . . . . Flight . | . . . . . Utility 3 | . 3 . . . Device . | . . . . . Storage 3 | . 3 . . . Processor . | . . . . . Hackware . | . . . . . Protection . | . . . . . Artifact . | . . . . . Weapon 7 | . 5 . . 2 Energy Gun . | . . . . . Energy Cannon 4 | . 3 . . 1 Ballistic Gun 2 | . 2 . . . Ballistic Cannon . | . . . . . Launcher 1 | . . . . 1 Special Weapon . | . . . . . Impact Weapon . | . . . . . Slashing Weapon . | . . . . . Piercing Weapon . | . . . . . Special Melee Weapon . | . . . . . Unidentified Prototypes . | . . . . . Parts Lost 6 | . . . . 6 Power 1 | . . . . 1 Propulsion 3 | . . . . 3 Utility . | . . . . . Weapon 2 | . . . . 2 Highest Loss Streak 6 | . . . . 6 Average Slot Usage (%) 98 | . 99 100 100 68 Engine 13 | . 14 14 14 11 Leg 27 | . 28 28 28 11 Storage 27 | . 27 28 28 28 Energy Cannon 22 | . 19 28 28 4 Ballistic Gun 4 | . 8 . . . Naked Turns . | . . . . . Heaviest Build 29 | 9 29 29 29 28 Greatest Support 20 | 20 20 20 20 20 Greatest Overweight (x) 7 | . 1 1 1 7 Average Overweight (x) 1 | . . 1 1 4 Largest Inventory Capacity 14 | . 14 12 12 12 Average Capacity 11 | . 11 12 12 12 Most Carried 12 | . 12 12 12 12 Average Carried 11 | . 10 12 11 12 Final Capacity 12 | 6 12 12 12 12 Final Carried 12 | 6 12 12 12 12 Class Distribution -------------------- 100% | Mutant Dominant Class ---------------- Mutant | -10/Materials Mutant | -10/Mines Mutant | -10/Exiles Mutant | -9/Mines Resources | -11 -10 -10 -10 -9 ----------- Run | Scr Mat Min Exi Min Matter Collected 358 | 200 158 . . . Remotely . | . . . . . Salvage Created 1156 | . 969 33 . 154 Parts 73 | . 59 6 . 8 Haulers Intercepted 2 | . 2 . . . Recyclers Shooed . | . . . . . Parts Field Recycled . | . . . . . Retrieved Matter . | . . . . . Parts Self-Destructed . | . . . . . Prevented . | . . . . . Kills | -11 -10 -10 -10 -9 ------- Run | Scr Mat Min Exi Min Combat Hostiles Destroyed 35 | . 18 3 . 14 Guns 4 | . 4 . . . Cannons 15 | . 14 1 . . AOE 16 | . . 2 . 14 Classes Destroyed 8 | . 7 . . 1 Builder 2 | . 2 . . . Hauler 2 | . 2 . . . Recycler 2 | . 1 . . 1 Operator 4 | . 4 . . . Watcher 1 | . 1 . . . Swarmer 9 | . 6 3 . . Grunt 14 | . 12 . . 2 Assembled 12 | . . . . 12 Best Kill Streak 14 | . 6 3 . 14 Combat Bots Only 14 | . 4 3 . 14 Max Kills in Single Turn 4 | . 2 1 . 4 Gunslinging . | . . . . . Exploded 4 | . . 1 . 4 Melee . | . . . . . Uniques/NPCs Destroyed . | . . . . . Combat | -11 -10 -10 -10 -9 -------- Run | Scr Mat Min Exi Min Damage Taken 991 | . 463 36 . 492 Core 294 | . 97 7 . 190 Absorbed by Shields . | . . . . . Core Remaining (%) 100 | 100 . . . . Volleys Fired 69 | . 55 4 . 10 Largest 2 | . 2 2 . 2 Hottest 112 | . 112 112 . 86 Shots Fired 124 | . 104 8 . 12 Gun 36 | . 36 . . . Cannon 79 | . 68 8 . 3 Launcher 9 | . . . . 9 Special . | . . . . . Kinetic 36 | . 36 . . . Thermal . | . . . . . Explosive 9 | . . . . 9 Electromagnetic 79 | . 68 8 . 3 Robot Hit Streak 13 | . 13 6 . 9 Robot Miss Streak 6 | . 6 1 . 1 Penetration Max . | . . . . . Secondary Targets . | . . . . . Shots Hit Robots 82 | . 66 6 . 10 Core Hits 62 | . 32 3 . 27 Critical Hits . | . . . . . Critical Kills . | . . . . . Critical Parts Destroyed . | . . . . . Melee Attacks . | . . . . . Impact . | . . . . . Slashing . | . . . . . Piercing . | . . . . . Sneak Attacks . | . . . . . Combat Hostiles . | . . . . . Follow-up Attacks . | . . . . . Damage Inflicted 2645 | . 1398 132 . 1115 Guns 180 | . 180 . . . Cannons 1241 | . 1118 57 . 66 Explosions 1224 | . 100 75 . 1049 Melee . | . . . . . Ramming . | . . . . . Kinetic 180 | . 180 . . . Thermal 266 | . 100 75 . 91 Explosive 958 | . . . . 958 Electromagnetic 1241 | . 1118 57 . 66 Impact . | . . . . . Slashing . | . . . . . Piercing . | . . . . . Highest Corruption 1 | . 1 1 1 1 Average Corruption 1 | . 1 1 1 1 Corruption Purged . | . . . . . Effects 5 | . 2 1 2 . Message Errors 2 | . 2 . . . Energy Discharges 1 | . . . 1 . Data Loss (minor) 1 | . . . 1 . Targeting Errors 1 | . . 1 . . Overload Shots . | . . . . . Overflow Damage 88 | . 32 . . 56 Projectiles 30 | . 30 . . . Explosions 58 | . 2 . . 56 Melee . | . . . . . Knockbacks . | . . . . . Impact . | . . . . . Kinetic . | . . . . . Secondary . | . . . . . Self-Inflicted Damage 120 | . 40 6 . 74 Shots 6 | . 1 1 . 4 Rammed . | . . . . . Targets Rammed . | . . . . . Kicked . | . . . . . Crushed . | . . . . . Highest Temperature 231 | . 231 114 . 75 Average Temperature 54 | . 55 55 . 38 Received Heat Transfer 110 | . 84 . . 26 Siege Activations . | . . . . . Robots Corrupted . | . . . . . Combat Hostiles . | . . . . . Parts Fried 4 | . 4 . . . Impact Corruptions . | . . . . . Robots Melted . | . . . . . Combat Hostiles . | . . . . . Parts Melted . | . . . . . Heat Transferred 250 | . 200 . . 50 Parts Sabotaged . | . . . . . Parts Stolen . | . . . . . Parts Stripped . | . . . . . Power Chain Reactions 6 | . 3 2 . 1 Missiles Intercepted . | . . . . . Alert | -11 -10 -10 -10 -9 ------- Run | Scr Mat Min Exi Min Peak Influence 395 | . 395 180 . 70 Average Influence 127 | . 133 124 . 44 Maximum Alert Level 1 | . 1 . . . Low Security (%) 78 | . 69 100 . 100 Level 1 21 | . 30 . . . Level 2 . | . . . . . Level 3 . | . . . . . Level 4 . | . . . . . Level 5 . | . . . . . High Security . | . . . . . Max Security . | . . . . . Squads Dispatched 6 | . 6 . . . Investigation 3 | . 3 . . . Extermination . | . . . . . Reinforcement 3 | . 3 . . . Assault . | . . . . . Garrison . | . . . . . Intercept . | . . . . . Construction Impeded . | . . . . . Haulers Reinforced . | . . . . . Stealth | -11 -10 -10 -10 -9 --------- Run | Scr Mat Min Exi Min Distress Signals . | . . . . . Communications Jammed . | . . . . . Distress Signals . | . . . . . Times Spotted 56 | . 34 5 . 17 Peak Tracking Total 12 | . 4 3 . 12 Tactical Retreats 3 | . 1 1 . 1 Traps | -11 -10 -10 -10 -9 ------- Run | Scr Mat Min Exi Min Traps Triggered 2 | . 2 . . . Indirectly . | . . . . . Trap Hack Attempts . | . . . . . Triggered . | . . . . . Disarmed . | . . . . . Reprogrammed . | . . . . . Reused . | . . . . . Traps Extracted . | . . . . . Installed . | . . . . . Triggered . | . . . . . Machines | -11 -10 -10 -10 -9 ---------- Run | Scr Mat Min Exi Min Machines Disabled 1 | . . . . 1 Max in Single Turn 1 | . . . . 1 Machines Sabotaged . | . . . . . Garrisons Compromised . | . . . . . Overloaded Fab Kills . | . . . . . Fab Network Shutdowns . | . . . . . Hacking | -11 -10 -10 -10 -9 --------- Run | Scr Mat Min Exi Min Machines Accessed 8 | . 5 . 3 . Terminals 5 | . 5 . . . Fabricators . | . . . . . Repair Stations . | . . . . . Recycling Units . | . . . . . Scanalyzers . | . . . . . Garrison Access . | . . . . . Total Hacks 58 | . 18 . 40 . Successful 49 | . 9 . 40 . Failed 9 | . 9 . . . Catastrophic . | . . . . . Database Lockouts . | . . . . . Manual 15 | . 13 . 2 . Terminals 18 | . 18 . . . Fabricators . | . . . . . Repair Stations . | . . . . . Recycling Units . | . . . . . Scanalyzers . | . . . . . Garrison Access . | . . . . . Terminal Hacks 43 | . 3 . 40 . Record 40 | . . . 40 . Robot Analysis 1 | . 1 . . . Prototype ID Bank 1 | . 1 . . . Zone Layout 1 | . 1 . . . Fabricator Hacks . | . . . . . Repair Station Hacks . | . . . . . Recycling Unit Hacks . | . . . . . Scanalyzer . | . . . . . Garrison Access Hacks . | . . . . . Unauthorized Hacks 17 | . 17 . . . Terminals 6 | . 6 . . . Track 1 | . 1 . . . Assimilate 1 | . 1 . . . Botnet 3 | . 3 . . . Disrupt 1 | . 1 . . . Fabricators . | . . . . . Repair Stations . | . . . . . Recycling Units . | . . . . . Scanalyzers . | . . . . . Garrison Access . | . . . . . Data Cores Recovered . | . . . . . Used . | . . . . . Hacking Detections 5 | . 5 . . . Full Trace Events 2 | . 2 . . . Feedback Events 1 | . 1 . . . Corruption 1 | . 1 . . . Feedback Blocked . | . . . . . Robot Schematics Acquired . | . . . . . Robots Built . | . . . . . Matter . | . . . . . Time . | . . . . . Total Robot Build Rating . | . . . . . Part Schematics Acquired . | . . . . . Parts Built . | . . . . . Matter . | . . . . . Time . | . . . . . Total Part Build Rating . | . . . . . Parts Repaired . | . . . . . Time . | . . . . . Parts Recycled . | . . . . . Recycled Matter . | . . . . . Retrieved Matter . | . . . . . Retrieved Components . | . . . . . Parts Scanalyzed . | . . . . . Part Schematics Acquired . | . . . . . Parts Damaged . | . . . . . Bothacking | -11 -10 -10 -10 -9 ------------ Run | Scr Mat Min Exi Min Used RIF Installer . | . . . . . Robots Hacked . | . . . . . Non-combat . | . . . . . Combat . | . . . . . Robot Hacks Applied . | . . . . . Relay Couplers Released . | . . . . . Robots Rewired . | . . . . . Allies Hacked . | . . . . . Hacks Repelled . | . . . . . Allies | -11 -10 -10 -10 -9 -------- Run | Scr Mat Min Exi Min Total Allies . | . . . . . Largest Group . | . . . . . Highest-Rated Group . | . . . . . Highest-Rated Ally . | . . . . . Total Orders . | . . . . . Ally Attacks . | . . . . . Total Damage . | . . . . . Kills . | . . . . . Allies Corrupted . | . . . . . Allies Melted . | . . . . . Intel | -11 -10 -10 -10 -9 ------- Run | Scr Mat Min Exi Min Robot Analysis Total 1 | . 1 . . . Derelict Logs Recovered . | . . . . . Drone Launches . | . . . . . Drone Recoveries . | . . . . . Exploration | -11 -10 -10 -10 -9 ------------- Run | Scr Mat Min Exi Min Turns Passed 1650 | . 863 267 465 55 Spaces Moved 915 | 1 430 167 307 10 Core 5 | . . . . 5 Treads . | . . . . . Legs 910 | 1 430 167 307 5 Wheels . | . . . . . Hover . | . . . . . Flight . | . . . . . Fastest Speed 120 | 120 120 150 150 150 Average Speed 151 | 120 149 150 150 274 Slowest Speed 400 | 120 150 150 150 400 Overloaded Moves . | . . . . . Propulsion Burnouts . | . . . . . Robots Hopped . | . . . . . Cave-ins Triggered . | . . . . . Exploration Rate (%) 39 | 2 74 45 68 9 Regions Visited 4 Branch Regions 3 Pre-discovered Areas 1 | . . . 1 . Known Exits Taken . | . . . . . Unknown Exits Taken 4 | 1 1 1 1 . Scrap Searched . | . . . . . Spaces Dug . | . . . . . Terrain Destroyed 94 | . 18 9 . 67 Melee . | . . . . . Projectile . | . . . . . AOE 94 | . 18 9 . 67 Actions | -11 -10 -10 -10 -9 --------- Run | Scr Mat Min Exi Min Total 1067 | . 554 176 312 25 Wait 49 | . 37 6 4 2 Move 911 | . 429 166 306 10 Hop . | . . . . . Pick Up 12 | . 11 . 1 . Fast Attach 3 | . 2 . . 1 Attach . | . . . . . Detach 1 | . 1 . . . Swap 11 | . 9 . . 2 Drop 11 | . 10 . 1 . Fire 69 | . 55 4 . 10 Melee . | . . . . . Ram . | . . . . . Kick . | . . . . . Crush . | . . . . . Escape Stasis . | . . . . . Rewire . | . . . . . Trap . | . . . . . Miscellaneous . | . . . . . Route ------- -11/Scrapyard -10/Materials (discovered 2 exits: [*Mat] / [*Min]) -10/Mines -10/Exiles -9/Mines History --------- Turn | Location | Event 1 | -11/Scrapyard | Discovered new exit (range 0) 1 | -11/Scrapyard | Entered Materials 314 | -10/Materials | Build established: Mutant 667 | -10/Materials | Discovered new exit (range 7) 855 | -10/Materials | Discovered new exit (range 6) 864 | -10/Materials | Entered Mines 1125 | -10/Mines | Deemed a non-threat by the Exiles lab entrance 1125 | -10/Mines | Discovered new exit (range 5) 1131 | -10/Mines | Entered Exiles 1167 | -10/Exiles | Met 8R-AWN 1190 | -10/Exiles | Met EX-HEX 1248 | -10/Exiles | Met EX-BIN 1266 | -10/Exiles | Aligned with FarCom system 1268 | -10/Exiles | Given EX-Vault access code 1337 | -10/Exiles | Opened EX-Vault 1348 | -10/Exiles | Found Prototype Device 1395 | -10/Exiles | Warned to stay clear of 0b10 Research branches 1445 | -10/Exiles | Met EX-DEC 1501 | -10/Exiles | Learned location of Zion (-7) 1578 | -10/Exiles | Discovered new exit (range 10) 1596 | -10/Exiles | Left Exiles lab with Cloak of Protection 1596 | -10/Exiles | Entered Mines 1597 | -9/Mines | Assembled infested the area 1613 | -9/Mines | Core integrity fell below 50% 1640 | -9/Mines | Destroyed 14 combat bots 1650 | -9/Mines | Core integrity fell below 20% 1651 | -9/Mines | Destroyed by D-53 Grenadier with Mini Grenade Launcher Last Messages --------------- 01615_ The unstable cave ceiling collapses. 01615_ Destroyed Asb. Hover Unit. 01615_ as-17691 destroyed. 01615_ Aluminum Leg destroyed. 01617_ as-68509 destroyed. 01619_ Aluminum Leg destroyed. 01619_ as-13569 destroyed. 01621_ The unstable cave ceiling collapses. 01630_ R-06 Scavenger collects Aluminum Leg. 01634_ R-06 Scavenger collects Heat Sink. 01637_ Acquired Aluminum Leg. 01638_ R-06 Scavenger collects Aluminum Leg. 01640_ The unstable cave ceiling collapses. 01642_ Chain reaction triggered in Lgt. Ion Engine. 01642_ R-06 Scavenger destroyed. 01646_ The unstable cave ceiling collapses. 01647_ Lgt. EM Pulse Cannon destroyed. 01649_ Aluminum Leg destroyed. 01649_ Ion Engine destroyed. 01650_ The unstable cave ceiling collapses. Map ----- +----------------------------------------------------+ | ?????????????????????????????????????????????????? | | ?????????????????????????????????????????????????? | | ?????????????????????????????????????????????????? | | ?????????????????????????????????????????????????? | | ?????????????????????????????????????????????????? | | ?????????????????????????????????????????????????? | | ?????????????????????????????????????????????????? | | ?????????????????????????????????????????????????? | | ?????????????????????????????????????????????????? | | ?????????????????????????????????????????????????? | | ?????????????????????????????????????????????????? | | ?????????????????????????????#####???????????????? | | ????????????????????????????# ##??????????????? | | ???????????????????????????? #??????????????? | | ???????????????????????????# ##?????????????? | | ?????????????????????????## ##????????????? | | ????????????????????????## ##???????????? | | ??????????????????????### < #???????????? | | ?????????????????????## # # ????????????? | | ?????????????????##### ????????????? | | ?????????????????? # #??????????????? | | ??????????????g????? ## #?####?????????? | | ???????????????????### # ?????????? | | ???????????????????# #???????????? | | ???????????????????# # ?????????? | | ???????????????????# @ d #????????????????? | | ???????????????????# d #????????????????? | | ???????????????????# ! # % ?????????? | | ???????????????????# % #?? ?????????? | | ???????????????????# = #??? ?????????? | | ???????????????????###;; ##?????????????????? | | ?????????????????????######## #??????????????????? | | ?????????????????????????????##??????????????????? | | ?????????????????????????????????????????????????? | | ?????????????????????????????????????????????????? | | ?????????????????????????????g???????????????????? | | ?????????????????????????????g???????????????????? | | ?????????????????????????????????????????????????? | | ?????????????????????????????????????????????????? | | ?????????????????????????????????????????????????? | | ?????????????????????????????????????????????????? | | ?????????????????????????????????????????????????? | | ?????????????????????????????????????????????????? | | ?????????????????????????????????????????????????? | | ?????????????????????????????????????????????????? | | ?????????????????????????????????????????????????? | | ?????????????????????????????????????????????????? | | ?????????????????????????????????????????????????? | | ?????????????????????????????????????????????????? | | ?????????????????????????????????????????????????? | +----------------------------------------------------+ Best States ------------- Heat Dissipation 25 Energy Generation 10 Energy Capacity 250 Matter Stores 300 Matter Capacity 300 Sight Range 16 Terrain Scan Density 10 Evasion (%) 40 Item Schematics ----------------- None Robot Schematics ------------------ None Fabricated ------------ Nothing Alien Tech Used ----------------- None Achievements -------------- None Challenges ------------ None Game ------ Seed CentriumWeaponSuperbattery Manual? 0 Play Time 00:24:21 Cumulative 71.4 hours Start 2019.12.29 @ 21:03:58 End 2019.12.29 @ 21:33:14 Sessions 1 Manual Loads 0 Difficulty Rogue Special Mode None Game No. 68 Rogue 68 Adventurer 0 Explorer 0 Win Type - Total 0 Types 0/0/0/0/0/0/0 Lore% 45 Gallery% 49 Achievement% 37 Wizard Run 0 Options --------- ASCII 0 Keyboard 1 Movement Numpad Keybinds 0 Fullscreen 2 Font 18/SmallcapsGlow Map View 76x50 Tactical HUD 1 Map Filters NONE Filters NONE Steam 1 RUN: 9956886a-2b91-4142-a347-0ca5aaa33744